[Event "December 12 Early 2023"]
[Site "https://www.chess.com"]
[Date "2023.12.12"]
[Round "3"]
[White "Valle Luis, Leo"]
[Black "Indjic, Aleksandar"]
[Result "0-1"]
[Board "66"]
[TimeControl "180+1"]
[WhiteFideId "54577187"]
[BlackFideId "911925"]
[WhiteElo "2518"]
[BlackElo "2902"]
[WhiteTeam "ESP"]
[BlackTeam "SRB"]
[WhiteClock "0:00:14"]
[BlackClock "0:00:50"]

1. e4 {[%clk 0:03:00]}  c5 {[%clk 0:02:59]} 2. Nf3 {[%clk 0:03:01]}  e6 {[%clk 0:02:58]} 3. d4 {[%clk 0:03:01]}  cxd4 {[%clk 0:02:59]} 4. Nxd4 {[%clk 0:03:02]}  a6 {[%clk 0:02:59]} 5. Bd3 {[%clk 0:03:02]}  Bc5 {[%clk 0:02:58]} 6. Nb3 {[%clk 0:03:02]}  Ba7 {[%clk 0:02:59]} 7. Qe2 {[%clk 0:03:01]}  Nc6 {[%clk 0:02:59]} 8. O-O {[%clk 0:02:59]}  d6 {[%clk 0:02:59]} 9. c4 {[%clk 0:02:58]}  Nf6 {[%clk 0:02:59]} 10. Nc3 {[%clk 0:02:58]}  O-O {[%clk 0:03:00]} 11. Be3 {[%clk 0:02:57]}  Qe7 {[%clk 0:02:59]} 12. Bxa7 {[%clk 0:02:57]}  Rxa7 {[%clk 0:03:00]} 13. Rad1 {[%clk 0:02:52]}  b6 {[%clk 0:03:00]} 14. f4 {[%clk 0:02:51]}  Qc7 {[%clk 0:02:59]} 15. Kh1 {[%clk 0:02:50]}  Bb7 {[%clk 0:02:57]} 16. a3 {[%clk 0:02:47]}  Raa8 {[%clk 0:02:56]} 17. Qe3 {[%clk 0:02:37]}  Rfe8 {[%clk 0:02:55]} 18. Nd2 {[%clk 0:02:33]}  Nd7 {[%clk 0:02:37]} 19. Nf3 {[%clk 0:02:31]}  Rad8 {[%clk 0:02:36]} 20. b4 {[%clk 0:02:23]}  Ba8 {[%clk 0:02:36]} 21. Bb1 {[%clk 0:02:22]}  Nf8 {[%clk 0:02:34]} 22. Qd3 {[%clk 0:02:10]}  Qb8 {[%clk 0:02:28]} 23. Ng5 {[%clk 0:01:58]}  h6 {[%clk 0:02:26]} 24. Nf3 {[%clk 0:01:58]}  Ne7 {[%clk 0:02:11]} 25. f5 {[%clk 0:01:53]}  exf5 {[%clk 0:02:11]} 26. exf5 {[%clk 0:01:53]}  Nh7 {[%clk 0:02:11]} 27. Nd4 {[%clk 0:01:30]}  Nf6 {[%clk 0:02:10]} 28. Qg3 {[%clk 0:01:22]}  Nc6 {[%clk 0:02:05]} 29. Nd5 {[%clk 0:01:10]}  Kh7 {[%clk 0:01:28]} 30. Ne6 {[%clk 0:01:02]}  Rg8 {[%clk 0:01:11]} 31. Nxd8 {[%clk 0:00:56]}  Qxd8 {[%clk 0:01:07]} 32. Nxf6+ {[%clk 0:00:56]}  gxf6 {[%clk 0:01:07]} 33. Qxd6 {[%clk 0:00:55]}  Qc8 {[%clk 0:01:07]} 34. Qxf6 {[%clk 0:00:50]}  Ne5 {[%clk 0:01:07]} 35. Rd2 {[%clk 0:00:43]}  Qxc4 {[%clk 0:01:06]} 36. Re1 {[%clk 0:00:22]}  Qf4 {[%clk 0:01:05]} 37. Qxe5 {[%clk 0:00:17]}  Qxd2 {[%clk 0:01:04]} 38. f6+ {[%clk 0:00:17]}  Kh8 {[%clk 0:01:04]} 39. Qe2 {[%clk 0:00:15]}  Bxg2+ {[%clk 0:00:51]} 40. Kg1 {[%clk 0:00:15]}  Bf3+ {[%clk 0:00:51]} 41. Kf1 {[%clk 0:00:14]}  Bxe2+ {[%clk 0:00:50]} 0-1

[Event "December 12 Early 2023"]
[Site "https://www.chess.com"]
[Date "2023.12.12"]
[Round "3"]
[White "Korchynskyi, Mykola"]
[Black "Baskakov, Egor"]
[Result "1/2-1/2"]
[Board "67"]
[TimeControl "180+1"]
[WhiteFideId "34138005"]
[BlackFideId "24197866"]
[WhiteElo "2518"]
[BlackElo "2899"]
[WhiteTeam "UKR"]
[BlackTeam "RUS"]
[WhiteClock "0:00:11"]
[BlackClock "0:00:16"]

1. d4 {[%clk 0:03:00]}  Nf6 {[%clk 0:02:59]} 2. c4 {[%clk 0:02:59]}  e6 {[%clk 0:03:00]} 3. Nc3 {[%clk 0:02:59]}  d5 {[%clk 0:03:00]} 4. Bg5 {[%clk 0:02:59]}  Be7 {[%clk 0:03:00]} 5. e3 {[%clk 0:02:42]}  Ne4 {[%clk 0:02:59]} 6. Bxe7 {[%clk 0:02:40]}  Qxe7 {[%clk 0:02:59]} 7. cxd5 {[%clk 0:02:41]}  Nxc3 {[%clk 0:02:59]} 8. bxc3 {[%clk 0:02:40]}  exd5 {[%clk 0:03:00]} 9. Nf3 {[%clk 0:02:40]}  O-O {[%clk 0:02:59]} 10. Bd3 {[%clk 0:02:39]}  c6 {[%clk 0:03:00]} 11. O-O {[%clk 0:02:39]}  Bg4 {[%clk 0:02:58]} 12. h3 {[%clk 0:02:34]}  Bh5 {[%clk 0:02:58]} 13. Qc2 {[%clk 0:02:29]}  Bxf3 {[%clk 0:02:55]} 14. gxf3 {[%clk 0:02:27]}  h6 {[%clk 0:02:54]} 15. Kh2 {[%clk 0:02:03]}  Nd7 {[%clk 0:02:52]} 16. Rg1 {[%clk 0:02:03]}  Rac8 {[%clk 0:02:41]} 17. Rg3 {[%clk 0:01:59]}  Nf6 {[%clk 0:02:28]} 18. Rag1 {[%clk 0:01:51]}  Nh5 {[%clk 0:02:28]} 19. R3g2 {[%clk 0:01:48]}  c5 {[%clk 0:02:22]} 20. Qd2 {[%clk 0:01:44]}  Rc6 {[%clk 0:02:19]} 21. Bb1 {[%clk 0:01:39]}  f5 {[%clk 0:02:07]} 22. a3 {[%clk 0:01:35]}  Qh4 {[%clk 0:01:48]} 23. dxc5 {[%clk 0:01:25]}  Rxc5 {[%clk 0:01:47]} 24. Qd4 {[%clk 0:01:23]}  Qxd4 {[%clk 0:01:45]} 25. cxd4 {[%clk 0:01:21]}  Ra5 {[%clk 0:01:46]} 26. Ba2 {[%clk 0:01:09]}  Kh7 {[%clk 0:01:44]} 27. Rc1 {[%clk 0:01:08]}  Rf7 {[%clk 0:01:41]} 28. Rc8 {[%clk 0:00:58]}  g6 {[%clk 0:01:39]} 29. Rg1 {[%clk 0:00:54]}  Nf6 {[%clk 0:01:32]} 30. Rd8 {[%clk 0:00:49]}  Rxa3 {[%clk 0:01:14]} 31. Bxd5 {[%clk 0:00:49]}  Nxd5 {[%clk 0:01:14]} 32. Rxd5 {[%clk 0:00:50]}  f4 {[%clk 0:01:15]} 33. Rd6 {[%clk 0:00:25]}  fxe3 {[%clk 0:01:05]} 34. fxe3 {[%clk 0:00:26]}  g5 {[%clk 0:00:50]} 35. Re6 {[%clk 0:00:14]}  Rxf3 {[%clk 0:00:49]} 36. Rc1 {[%clk 0:00:09]}  Raxe3 {[%clk 0:00:35]} 37. Rc7+ {[%clk 0:00:10]}  Kg8 {[%clk 0:00:35]} 38. Rg6+ {[%clk 0:00:09]}  Kf8 {[%clk 0:00:35]} 39. Rxh6 {[%clk 0:00:10]}  Kg8 {[%clk 0:00:24]} 40. Rg6+ {[%clk 0:00:10]}  Kf8 {[%clk 0:00:25]} 41. Rh6 {[%clk 0:00:10]}  Kg8 {[%clk 0:00:16]} 42. Rg6+ {[%clk 0:00:10]}  Kf8 {[%clk 0:00:16]} 43. Rh6 {[%clk 0:00:11]} 1/2-1/2

[Event "December 12 Early 2023"]
[Site "https://www.chess.com"]
[Date "2023.12.12"]
[Round "3"]
[White "Devaev, Alexander"]
[Black "Galchenko, Matvey"]
[Result "0-1"]
[Board "68"]
[TimeControl "180+1"]
[WhiteFideId "4169395"]
[BlackFideId "24175480"]
[WhiteElo "2517"]
[BlackElo "2885"]
[WhiteTeam "RUS"]
[BlackTeam "FID"]
[WhiteClock "0:00:00"]
[BlackClock "0:00:08"]

1. d4 {[%clk 0:02:55]}  Nf6 {[%clk 0:02:50]} 2. c4 {[%clk 0:02:56]}  c5 {[%clk 0:02:51]} 3. d5 {[%clk 0:02:56]}  e6 {[%clk 0:02:52]} 4. Nc3 {[%clk 0:02:55]}  exd5 {[%clk 0:02:52]} 5. cxd5 {[%clk 0:02:56]}  d6 {[%clk 0:02:53]} 6. e4 {[%clk 0:02:57]}  g6 {[%clk 0:02:54]} 7. Nf3 {[%clk 0:02:57]}  a6 {[%clk 0:02:54]} 8. h3 {[%clk 0:02:57]}  b5 {[%clk 0:02:54]} 9. Qc2 {[%clk 0:02:55]}  Bg7 {[%clk 0:02:53]} 10. a4 {[%clk 0:02:55]}  b4 {[%clk 0:02:51]} 11. Nb1 {[%clk 0:02:56]}  Qe7 {[%clk 0:02:48]} 12. Bd3 {[%clk 0:02:40]}  Nxd5 {[%clk 0:02:47]} 13. O-O {[%clk 0:02:41]}  Nb6 {[%clk 0:02:34]} 14. Bf4 {[%clk 0:02:35]}  O-O {[%clk 0:02:32]} 15. Nbd2 {[%clk 0:02:36]}  a5 {[%clk 0:02:28]} 16. Rfe1 {[%clk 0:02:32]}  Nc6 {[%clk 0:02:28]} 17. Bb5 {[%clk 0:02:25]}  Bb7 {[%clk 0:02:18]} 18. Rad1 {[%clk 0:02:26]}  Rad8 {[%clk 0:02:14]} 19. Re2 {[%clk 0:02:14]}  Nd4 {[%clk 0:01:52]} 20. Nxd4 {[%clk 0:02:13]}  Bxd4 {[%clk 0:01:53]} 21. Nf3 {[%clk 0:02:05]}  Bg7 {[%clk 0:01:51]} 22. b3 {[%clk 0:02:05]}  h6 {[%clk 0:01:48]} 23. h4 {[%clk 0:02:03]}  Qf6 {[%clk 0:01:26]} 24. Qc1 {[%clk 0:02:00]}  Kh7 {[%clk 0:01:16]} 25. e5 {[%clk 0:01:32]}  dxe5 {[%clk 0:00:59]} 26. Rxd8 {[%clk 0:01:26]}  Qxd8 {[%clk 0:00:56]} 27. Nxe5 {[%clk 0:01:26]}  Qd5 {[%clk 0:00:52]} 28. f3 {[%clk 0:01:09]}  Qxb3 {[%clk 0:00:46]} 29. Qxc5 {[%clk 0:01:07]}  Nd5 {[%clk 0:00:47]} 30. Bg3 {[%clk 0:01:01]}  Nc3 {[%clk 0:00:43]} 31. Re1 {[%clk 0:00:58]}  Qc2 {[%clk 0:00:32]} 32. Qe7 {[%clk 0:00:46]}  Bd5 {[%clk 0:00:32]} 33. h5 {[%clk 0:00:46]}  Qd2 {[%clk 0:00:14]} 34. hxg6+ {[%clk 0:00:45]}  fxg6 {[%clk 0:00:15]} 35. Bd3 {[%clk 0:00:42]}  Rf6 {[%clk 0:00:12]} 36. Nd7 {[%clk 0:00:25]}  Rf7 {[%clk 0:00:08]} 37. Bxg6+ {[%clk 0:00:18]}  Kxg6 {[%clk 0:00:08]} 38. Ne5+ {[%clk 0:00:18]}  Bxe5 {[%clk 0:00:07]} 39. Rxe5 {[%clk 0:00:18]}  Rxe7 {[%clk 0:00:07]} 40. Rxe7 {[%clk 0:00:19]}  Ne2+ {[%clk 0:00:07]} 41. Kh2 {[%clk 0:00:18]}  Nxg3 {[%clk 0:00:08]} 42. Kxg3 {[%clk 0:00:00]}  Qg5+ {[%clk 0:00:08]} 0-1

[Event "December 12 Early 2023"]
[Site "https://www.chess.com"]
[Date "2023.12.12"]
[Round "3"]
[White "Kazakouski, Valery"]
[Black "Tulchynskyi, Feliks"]
[Result "1-0"]
[Board "70"]
[TimeControl "180+1"]
[WhiteFideId "13507443"]
[BlackFideId "34127895"]
[WhiteElo "2854"]
[BlackElo "2509"]
[WhiteTeam "LTU"]
[BlackTeam "UKR"]
[WhiteClock "0:00:04"]
[BlackClock "0:00:00"]

1. e4 {[%clk 0:03:00]}  e6 {[%clk 0:02:58]} 2. d4 {[%clk 0:02:57]}  d5 {[%clk 0:02:58]} 3. Nc3 {[%clk 0:02:58]}  Nf6 {[%clk 0:02:50]} 4. e5 {[%clk 0:02:58]}  Nfd7 {[%clk 0:02:50]} 5. f4 {[%clk 0:02:59]}  c5 {[%clk 0:02:50]} 6. Nf3 {[%clk 0:03:00]}  Nc6 {[%clk 0:02:49]} 7. Be3 {[%clk 0:03:00]}  a6 {[%clk 0:02:48]} 8. Qd2 {[%clk 0:02:58]}  cxd4 {[%clk 0:02:43]} 9. Nxd4 {[%clk 0:02:58]}  Bc5 {[%clk 0:02:43]} 10. Be2 {[%clk 0:02:49]}  Qc7 {[%clk 0:02:39]} 11. a3 {[%clk 0:02:38]}  O-O {[%clk 0:02:33]} 12. O-O {[%clk 0:02:37]}  Nxd4 {[%clk 0:02:31]} 13. Bxd4 {[%clk 0:02:38]}  Bxd4+ {[%clk 0:02:32]} 14. Qxd4 {[%clk 0:02:38]}  Qb6 {[%clk 0:02:22]} 15. Qxb6 {[%clk 0:02:37]}  Nxb6 {[%clk 0:02:23]} 16. Kf2 {[%clk 0:02:36]}  Bd7 {[%clk 0:02:22]} 17. Bd3 {[%clk 0:02:32]}  Na4 {[%clk 0:02:16]} 18. Nd1 {[%clk 0:02:22]}  Rfc8 {[%clk 0:02:01]} 19. Ke3 {[%clk 0:02:20]}  Bb5 {[%clk 0:01:55]} 20. Bxb5 {[%clk 0:02:17]}  axb5 {[%clk 0:01:56]} 21. c3 {[%clk 0:02:15]}  Nc5 {[%clk 0:01:41]} 22. Nf2 {[%clk 0:02:12]}  Nb3 {[%clk 0:01:39]} 23. Rad1 {[%clk 0:02:12]}  Ra4 {[%clk 0:01:33]} 24. Rfe1 {[%clk 0:02:02]}  g6 {[%clk 0:01:26]} 25. g3 {[%clk 0:02:01]}  h5 {[%clk 0:01:23]} 26. Rd3 {[%clk 0:01:43]}  Kf8 {[%clk 0:01:16]} 27. Red1 {[%clk 0:01:43]}  Ke7 {[%clk 0:01:14]} 28. Nh3 {[%clk 0:01:39]}  Nc5 {[%clk 0:01:06]} 29. Rd4 {[%clk 0:01:38]}  Nb3 {[%clk 0:01:04]} 30. R4d3 {[%clk 0:01:24]}  Nc5 {[%clk 0:01:03]} 31. R3d2 {[%clk 0:01:23]}  Nb3 {[%clk 0:01:03]} 32. Rf2 {[%clk 0:01:16]}  Re4+ {[%clk 0:00:48]} 33. Kf3 {[%clk 0:01:12]}  Rec4 {[%clk 0:00:47]} 34. Ng5 {[%clk 0:01:03]}  d4 {[%clk 0:00:44]} 35. cxd4 {[%clk 0:01:03]}  Rxd4 {[%clk 0:00:44]} 36. Rxd4 {[%clk 0:00:54]}  Nxd4+ {[%clk 0:00:44]} 37. Ke3 {[%clk 0:00:53]}  Nf5+ {[%clk 0:00:39]} 38. Kd3 {[%clk 0:00:54]}  Rc4 {[%clk 0:00:33]} 39. Nf3 {[%clk 0:00:47]}  Rc1 {[%clk 0:00:29]} 40. Rc2 {[%clk 0:00:34]}  Rd1+ {[%clk 0:00:16]} 41. Ke2 {[%clk 0:00:34]}  Rb1 {[%clk 0:00:16]} 42. Rc7+ {[%clk 0:00:15]}  Ke8 {[%clk 0:00:16]} 43. Rc2 {[%clk 0:00:12]}  Kd7 {[%clk 0:00:16]} 44. Rd2+ {[%clk 0:00:09]}  Ke7 {[%clk 0:00:16]} 45. Ne1 {[%clk 0:00:10]}  f6 {[%clk 0:00:10]} 46. exf6+ {[%clk 0:00:09]}  Kxf6 {[%clk 0:00:11]} 47. Nf3 {[%clk 0:00:10]}  Ne7 {[%clk 0:00:08]} 48. Nd4 {[%clk 0:00:08]}  b4 {[%clk 0:00:07]} 49. axb4 {[%clk 0:00:08]}  Nd5 {[%clk 0:00:07]} 50. b5 {[%clk 0:00:09]}  e5 {[%clk 0:00:05]} 51. Nf3 {[%clk 0:00:07]}  e4 {[%clk 0:00:03]} 52. Ng5 {[%clk 0:00:07]}  Nb6 {[%clk 0:00:01]} 53. Nxe4+ {[%clk 0:00:07]}  Ke6 {[%clk 0:00:02]} 54. Nc5+ {[%clk 0:00:07]}  Kf5 {[%clk 0:00:03]} 55. Nxb7 {[%clk 0:00:07]}  Nc4 {[%clk 0:00:03]} 56. Rc2 {[%clk 0:00:06]}  Nxb2 {[%clk 0:00:02]} 57. Nd6+ {[%clk 0:00:06]}  Kg4 {[%clk 0:00:02]} 58. Ne4 {[%clk 0:00:06]}  Kf5 {[%clk 0:00:02]} 59. Nf2 {[%clk 0:00:05]}  Na4 {[%clk 0:00:02]} 60. Rc4 {[%clk 0:00:04]}  Rb2+ {[%clk 0:00:01]} 61. Kf1 {[%clk 0:00:04]}  Nb6 {[%clk 0:00:00]} 62. Rc5+ {[%clk 0:00:04]} 1-0

[Event "December 12 Early 2023"]
[Site "https://www.chess.com"]
[Date "2023.12.12"]
[Round "3"]
[White "Corrales Jimenez, Fidel"]
[Black "Krzywda, Andrzej"]
[Result "1-0"]
[Board "71"]
[TimeControl "180+1"]
[WhiteFideId "3506690"]
[BlackFideId "1114565"]
[WhiteElo "2848"]
[BlackElo "2509"]
[WhiteTeam "USA"]
[BlackTeam "POL"]
[WhiteClock "0:01:14"]
[BlackClock "0:01:18"]

1. e4 {[%clk 0:03:00]}  e5 {[%clk 0:02:59]} 2. Nf3 {[%clk 0:03:00]}  Nf6 {[%clk 0:03:00]} 3. Nc3 {[%clk 0:02:58]}  Bb4 {[%clk 0:03:00]} 4. Nxe5 {[%clk 0:02:56]}  O-O {[%clk 0:03:00]} 5. Be2 {[%clk 0:02:55]}  Re8 {[%clk 0:03:00]} 6. Nf3 {[%clk 0:02:53]}  Nxe4 {[%clk 0:02:54]} 7. O-O {[%clk 0:02:52]}  d5 {[%clk 0:02:53]} 8. a3 {[%clk 0:02:41]}  Bf8 {[%clk 0:02:48]} 9. d3 {[%clk 0:02:41]}  Nxc3 {[%clk 0:02:47]} 10. bxc3 {[%clk 0:02:42]}  c5 {[%clk 0:02:39]} 11. h3 {[%clk 0:02:41]}  Nc6 {[%clk 0:02:39]} 12. a4 {[%clk 0:02:41]}  h6 {[%clk 0:02:32]} 13. Re1 {[%clk 0:02:38]}  g6 {[%clk 0:02:31]} 14. Bf4 {[%clk 0:02:37]}  Bg7 {[%clk 0:02:31]} 15. Qd2 {[%clk 0:02:37]}  Kh7 {[%clk 0:02:31]} 16. d4 {[%clk 0:02:32]}  c4 {[%clk 0:02:29]} 17. Bf1 {[%clk 0:02:26]}  Rxe1 {[%clk 0:02:23]} 18. Rxe1 {[%clk 0:02:27]}  Qa5 {[%clk 0:02:22]} 19. Re8 {[%clk 0:02:23]}  Qxa4 {[%clk 0:02:00]} 20. Bxh6 {[%clk 0:01:27]}  Nxd4 {[%clk 0:01:38]} 21. Bxg7 {[%clk 0:01:17]}  Nxf3+ {[%clk 0:01:32]} 22. gxf3 {[%clk 0:01:17]}  Kxg7 {[%clk 0:01:32]} 23. Qd4+ {[%clk 0:01:15]}  f6 {[%clk 0:01:21]} 24. Re7+ {[%clk 0:01:15]}  Kh6 {[%clk 0:01:18]} 25. Qh4# {[%clk 0:01:14]} 1-0

[Event "December 12 Early 2023"]
[Site "https://www.chess.com"]
[Date "2023.12.12"]
[Round "3"]
[White "Herman, Matthew"]
[Black "Putnam, Liam"]
[Result "0-1"]
[Board "72"]
[TimeControl "180+1"]
[WhiteFideId "2028964"]
[BlackFideId "30938279"]
[WhiteElo "2508"]
[BlackElo "2837"]
[WhiteTeam "USA"]
[BlackTeam "USA"]
[WhiteClock "0:00:04"]
[BlackClock "0:00:46"]

1. e4 {[%clk 0:03:00]}  c6 {[%clk 0:02:59]} 2. d4 {[%clk 0:03:00]}  d5 {[%clk 0:03:00]} 3. e5 {[%clk 0:03:01]}  c5 {[%clk 0:03:00]} 4. dxc5 {[%clk 0:03:02]}  e6 {[%clk 0:03:00]} 5. Nd2 {[%clk 0:03:02]}  Bxc5 {[%clk 0:03:00]} 6. Nb3 {[%clk 0:03:02]}  Bb6 {[%clk 0:03:00]} 7. Qg4 {[%clk 0:03:02]}  Kf8 {[%clk 0:02:50]} 8. Bd3 {[%clk 0:03:01]}  Nc6 {[%clk 0:02:50]} 9. Qe2 {[%clk 0:02:59]}  Nge7 {[%clk 0:02:49]} 10. Nf3 {[%clk 0:02:54]}  Ng6 {[%clk 0:02:49]} 11. O-O {[%clk 0:02:35]}  Bc7 {[%clk 0:02:47]} 12. Bxg6 {[%clk 0:02:29]}  hxg6 {[%clk 0:02:48]} 13. Bf4 {[%clk 0:02:12]}  Rh5 {[%clk 0:02:41]} 14. Bg3 {[%clk 0:02:05]}  b6 {[%clk 0:02:30]} 15. Nbd4 {[%clk 0:01:57]}  Bb7 {[%clk 0:02:15]} 16. Nxc6 {[%clk 0:01:57]}  Bxc6 {[%clk 0:02:16]} 17. Nd4 {[%clk 0:01:57]}  Bd7 {[%clk 0:02:13]} 18. f4 {[%clk 0:01:16]}  Rc8 {[%clk 0:02:09]} 19. Bf2 {[%clk 0:01:05]}  Kg8 {[%clk 0:01:53]} 20. g3 {[%clk 0:00:54]}  Rb8 {[%clk 0:01:46]} 21. a4 {[%clk 0:00:53]}  Qe7 {[%clk 0:01:46]} 22. c3 {[%clk 0:00:50]}  Bd8 {[%clk 0:01:41]} 23. h4 {[%clk 0:00:49]}  Rc8 {[%clk 0:01:39]} 24. Rfc1 {[%clk 0:00:49]}  Rc4 {[%clk 0:01:39]} 25. b3 {[%clk 0:00:49]}  Rc8 {[%clk 0:01:39]} 26. c4 {[%clk 0:00:45]}  dxc4 {[%clk 0:01:38]} 27. Rxc4 {[%clk 0:00:45]}  Rc5 {[%clk 0:01:31]} 28. Nb5 {[%clk 0:00:10]}  Rxb5 {[%clk 0:01:07]} 29. axb5 {[%clk 0:00:09]}  Bxb5 {[%clk 0:01:08]} 30. Rd1 {[%clk 0:00:09]}  Bxc4 {[%clk 0:01:06]} 31. Qxc4 {[%clk 0:00:10]}  Rh8 {[%clk 0:01:04]} 32. Qc8 {[%clk 0:00:10]}  Kh7 {[%clk 0:01:04]} 33. Rd7 {[%clk 0:00:09]}  Qe8 {[%clk 0:01:02]} 34. Qb7 {[%clk 0:00:09]}  Rf8 {[%clk 0:00:55]} 35. Qxa7 {[%clk 0:00:09]}  b5 {[%clk 0:00:49]} 36. Bc5 {[%clk 0:00:08]}  Rg8 {[%clk 0:00:49]} 37. Rxf7 {[%clk 0:00:07]}  Qc6 {[%clk 0:00:49]} 38. Kf2 {[%clk 0:00:05]}  Qe4 {[%clk 0:00:47]} 39. Bf8 {[%clk 0:00:05]}  Qc2+ {[%clk 0:00:46]} 40. Kf3 {[%clk 0:00:05]}  Qc6+ {[%clk 0:00:46]} 41. Kf2 {[%clk 0:00:04]}  Bb6+ {[%clk 0:00:46]} 0-1

[Event "December 12 Early 2023"]
[Site "https://www.chess.com"]
[Date "2023.12.12"]
[Round "3"]
[White "Chernomordik, Pavel"]
[Black "Finek, Vaclav"]
[Result "0-1"]
[Board "73"]
[TimeControl "180+1"]
[WhiteFideId "2804530"]
[BlackFideId "23718293"]
[WhiteElo "2508"]
[BlackElo "2834"]
[WhiteTeam "ISR"]
[BlackTeam "CZE"]
[WhiteClock "0:00:00"]
[BlackClock "0:00:10"]

1. e4 {[%clk 0:03:00]}  c5 {[%clk 0:02:58]} 2. Nc3 {[%clk 0:03:00]}  Nc6 {[%clk 0:02:58]} 3. Bb5 {[%clk 0:02:59]}  Nd4 {[%clk 0:02:55]} 4. Bc4 {[%clk 0:02:59]}  a6 {[%clk 0:02:52]} 5. a3 {[%clk 0:02:55]}  b5 {[%clk 0:02:51]} 6. Ba2 {[%clk 0:02:54]}  e6 {[%clk 0:02:50]} 7. Nge2 {[%clk 0:02:54]}  Bb7 {[%clk 0:02:50]} 8. d3 {[%clk 0:02:53]}  g6 {[%clk 0:02:44]} 9. Nxd4 {[%clk 0:02:52]}  cxd4 {[%clk 0:02:45]} 10. Ne2 {[%clk 0:02:52]}  Bg7 {[%clk 0:02:46]} 11. O-O {[%clk 0:02:47]}  Ne7 {[%clk 0:02:45]} 12. f4 {[%clk 0:02:45]}  O-O {[%clk 0:02:38]} 13. Ng3 {[%clk 0:02:44]}  f5 {[%clk 0:02:31]} 14. Bd2 {[%clk 0:02:40]}  Kh8 {[%clk 0:02:22]} 15. Qe1 {[%clk 0:02:36]}  Rc8 {[%clk 0:02:08]} 16. Rc1 {[%clk 0:02:35]}  fxe4 {[%clk 0:01:27]} 17. dxe4 {[%clk 0:02:27]}  Qb6 {[%clk 0:01:26]} 18. Kh1 {[%clk 0:02:26]}  Rfe8 {[%clk 0:00:55]} 19. Qf2 {[%clk 0:02:18]}  d5 {[%clk 0:00:46]} 20. Rfe1 {[%clk 0:02:08]}  dxe4 {[%clk 0:00:42]} 21. Nxe4 {[%clk 0:02:07]}  Nf5 {[%clk 0:00:43]} 22. Ng5 {[%clk 0:01:53]}  Ne3 {[%clk 0:00:33]} 23. Rxe3 {[%clk 0:01:36]}  dxe3 {[%clk 0:00:33]} 24. Bxe3 {[%clk 0:01:35]}  Qc6 {[%clk 0:00:32]} 25. c3 {[%clk 0:01:25]}  h6 {[%clk 0:00:25]} 26. Nf3 {[%clk 0:01:14]}  Rf8 {[%clk 0:00:25]} 27. Qh4 {[%clk 0:01:07]}  Qe4 {[%clk 0:00:21]} 28. Re1 {[%clk 0:01:02]}  Qc2 {[%clk 0:00:15]} 29. Bb1 {[%clk 0:00:50]}  Qxb2 {[%clk 0:00:14]} 30. Bxg6 {[%clk 0:00:43]}  Bxf3 {[%clk 0:00:11]} 31. gxf3 {[%clk 0:00:43]}  Qxc3 {[%clk 0:00:12]} 32. f5 {[%clk 0:00:33]}  Qf6 {[%clk 0:00:09]} 33. Qh5 {[%clk 0:00:18]}  Qc3 {[%clk 0:00:09]} 34. Re2 {[%clk 0:00:10]}  Qd3 {[%clk 0:00:08]} 35. f4 {[%clk 0:00:08]}  Qe4+ {[%clk 0:00:08]} 36. Kg1 {[%clk 0:00:07]}  exf5 {[%clk 0:00:09]} 37. Bf2 {[%clk 0:00:05]}  Rc1+ {[%clk 0:00:08]} 38. Be1 {[%clk 0:00:05]}  Rxe1+ {[%clk 0:00:08]} 39. Rxe1 {[%clk 0:00:04]}  Qxe1+ {[%clk 0:00:09]} 40. Kg2 {[%clk 0:00:05]}  Qe4+ {[%clk 0:00:10]} 41. Kg3 {[%clk 0:00:04]}  Qe3+ {[%clk 0:00:11]} 42. Kg2 {[%clk 0:00:00]}  Qxf4 {[%clk 0:00:10]} 0-1

[Event "December 12 Early 2023"]
[Site "https://www.chess.com"]
[Date "2023.12.12"]
[Round "3"]
[White "Yeremyan, Alen"]
[Black "Shinkarev, M"]
[Result "1-0"]
[Board "74"]
[TimeControl "180+1"]
[WhiteFideId "13308998"]
[BlackFideId "4145348"]
[WhiteElo "2821"]
[BlackElo "2506"]
[WhiteTeam "ARM"]
[BlackTeam "RUS"]
[WhiteClock "0:02:19"]
[BlackClock "0:00:25"]

1. e4 {[%clk 0:02:58]}  e5 {[%clk 0:02:22]} 2. Nf3 {[%clk 0:02:57]}  d6 {[%clk 0:02:22]} 3. d4 {[%clk 0:02:58]}  Nd7 {[%clk 0:02:23]} 4. Nc3 {[%clk 0:02:57]}  c6 {[%clk 0:02:23]} 5. Bc4 {[%clk 0:02:58]}  Be7 {[%clk 0:02:23]} 6. O-O {[%clk 0:02:59]}  Ngf6 {[%clk 0:02:23]} 7. Bxf7+ {[%clk 0:02:59]}  Kxf7 {[%clk 0:02:23]} 8. Ng5+ {[%clk 0:03:00]}  Kg8 {[%clk 0:02:22]} 9. Ne6 {[%clk 0:03:00]}  Qe8 {[%clk 0:02:22]} 10. Nc7 {[%clk 0:02:59]}  Qd8 {[%clk 0:02:21]} 11. Nxa8 {[%clk 0:03:00]}  b6 {[%clk 0:02:19]} 12. dxe5 {[%clk 0:02:58]}  dxe5 {[%clk 0:02:19]} 13. Bg5 {[%clk 0:02:52]}  Bb7 {[%clk 0:02:12]} 14. Bxf6 {[%clk 0:02:53]}  Bxf6 {[%clk 0:02:10]} 15. Qd6 {[%clk 0:02:49]}  Qc8 {[%clk 0:01:26]} 16. Nc7 {[%clk 0:02:46]}  Nc5 {[%clk 0:01:21]} 17. Rad1 {[%clk 0:02:45]}  a5 {[%clk 0:01:18]} 18. a3 {[%clk 0:02:44]}  a4 {[%clk 0:01:16]} 19. b4 {[%clk 0:02:45]}  axb3 {[%clk 0:01:16]} 20. cxb3 {[%clk 0:02:46]}  Nxb3 {[%clk 0:01:12]} 21. Rb1 {[%clk 0:02:30]}  Nd4 {[%clk 0:00:57]} 22. Rxb6 {[%clk 0:02:27]}  Bd8 {[%clk 0:00:25]} 23. Rxb7 {[%clk 0:02:19]} 1-0

[Event "December 12 Early 2023"]
[Site "https://www.chess.com"]
[Date "2023.12.12"]
[Round "3"]
[White "Spichkin, Alexander"]
[Black "Brodsky, David"]
[Result "0-1"]
[Board "76"]
[TimeControl "180+1"]
[WhiteFideId "4144074"]
[BlackFideId "2073250"]
[WhiteElo "2504"]
[BlackElo "2818"]
[WhiteTeam "RUS"]
[BlackTeam "USA"]
[WhiteClock "0:01:16"]
[BlackClock "0:00:10"]

1. f4 {[%clk 0:02:59]}  d5 {[%clk 0:02:58]} 2. Nf3 {[%clk 0:03:00]}  Bg4 {[%clk 0:02:58]} 3. Ne5 {[%clk 0:02:59]}  Bh5 {[%clk 0:02:55]} 4. c4 {[%clk 0:02:53]}  f6 {[%clk 0:02:51]} 5. Nf3 {[%clk 0:02:48]}  dxc4 {[%clk 0:02:46]} 6. Qa4+ {[%clk 0:02:48]}  Nc6 {[%clk 0:02:46]} 7. Qxc4 {[%clk 0:02:45]}  Qd7 {[%clk 0:02:41]} 8. Nc3 {[%clk 0:02:44]}  O-O-O {[%clk 0:02:39]} 9. b3 {[%clk 0:02:40]}  e5 {[%clk 0:02:33]} 10. fxe5 {[%clk 0:02:38]}  fxe5 {[%clk 0:02:30]} 11. g3 {[%clk 0:02:38]}  Bxf3 {[%clk 0:02:02]} 12. exf3 {[%clk 0:02:37]}  Nd4 {[%clk 0:02:03]} 13. Kf2 {[%clk 0:02:35]}  Nf6 {[%clk 0:01:57]} 14. h4 {[%clk 0:02:34]}  Kb8 {[%clk 0:01:53]} 15. Bh3 {[%clk 0:02:33]}  Qd6 {[%clk 0:01:52]} 16. a4 {[%clk 0:02:27]}  Qb6 {[%clk 0:01:45]} 17. Rb1 {[%clk 0:02:23]}  Nxb3+ {[%clk 0:01:17]} 18. Kg2 {[%clk 0:02:20]}  Nxd2 {[%clk 0:01:11]} 19. Bxd2 {[%clk 0:02:10]}  Rxd2+ {[%clk 0:01:10]} 20. Ne2 {[%clk 0:02:10]}  Qc5 {[%clk 0:00:50]} 21. Rxb7+ {[%clk 0:01:54]}  Kxb7 {[%clk 0:00:49]} 22. Rb1+ {[%clk 0:01:55]}  Qb6 {[%clk 0:00:22]} 23. Rxb6+ {[%clk 0:01:50]}  axb6 {[%clk 0:00:23]} 24. Kf1 {[%clk 0:01:33]}  Bc5 {[%clk 0:00:16]} 25. Bg2 {[%clk 0:01:33]}  Rhd8 {[%clk 0:00:14]} 26. f4+ {[%clk 0:01:33]}  e4 {[%clk 0:00:14]} 27. Nc3 {[%clk 0:01:32]}  Rf2+ {[%clk 0:00:13]} 28. Ke1 {[%clk 0:01:30]}  Rxg2 {[%clk 0:00:11]} 29. Nxe4 {[%clk 0:01:27]}  Re8 {[%clk 0:00:11]} 30. Kf1 {[%clk 0:01:22]}  Rg1+ {[%clk 0:00:11]} 31. Ke2 {[%clk 0:01:21]}  Rxe4+ {[%clk 0:00:11]} 32. Qxe4+ {[%clk 0:01:21]}  Nxe4 {[%clk 0:00:12]} 33. Kd3 {[%clk 0:01:16]}  Nxg3 {[%clk 0:00:10]} 0-1